bitfinex-derivatives/quotes_BTCF0:USTF0_20240814
["timestamp","ask_amount","ask_price","bid_price","bid_amount"]
[1723633337608,0.3648,61039.0,61037.0,0.06536523]
[1723633338005,0.37427161,61039.0,61036.0,0.06536523]
[1723633338209,0.2827,61037.0,61035.0,0.06561104]
[1723633338410,0.2827,61037.0,61035.0,0.00024581]
[1723633338724,0.0523,61036.0,61035.0,0.00024581]
[1723633340216,0.0523,61036.0,61035.0,0.06562926]
[1723633340419,0.004,61037.0,61035.0,0.00024581]
[1723633340815,0.004,61037.0,61035.0,0.08197208]
[1723633341218,0.004,61037.0,61036.0,0.20649173]
[1723633341715,0.004,61037.0,61036.0,0.12476546]
[1723633342217,0.004,61037.0,61036.0,1.37708546]
[1723633342421,0.008,61039.0,61038.0,0.001]
[1723633342610,0.008,61039.0,61038.0,0.22381884]
[1723633342816,0.008,61039.0,61038.0,0.12576546]
[1723633343523,0.33133919,61047.0,61038.0,0.12476546]
[1723633343827,0.33133919,61047.0,61046.0,0.0653609]
[1723633344020,0.69213919,61047.0,61044.0,0.0653609]
[1723633344215,0.69213919,61047.0,61046.0,0.0653609]
[1723633344422,0.69213919,61047.0,61042.0,0.08170113]
[1723633344423,0.3608,61047.0,61042.0,0.08170113]
[1723633344618,0.3608,61047.0,61043.0,0.20645488]
[1723633344814,0.00024581,61048.0,61043.0,0.08170113]
[1723633345026,0.00024581,61048.0,61045.0,0.08170113]
[1723633345220,0.6435,61061.0,61047.0,0.44250113]
[1723633345221,0.70882327,61061.0,61047.0,0.44250113]
[1723633345419,0.6435,61061.0,61054.0,0.06535218]
[1723633345728,0.6435,61061.0,61056.0,0.06535218]
[1723633346222,0.65222566,61061.0,61056.0,0.06535218]
[1723633346410,0.65222566,61061.0,61055.0,0.06535218]
[1723633346618,0.65722566,61061.0,61055.0,0.06535218]
[1723633347020,0.38852566,61061.0,61055.0,0.06535218]
[1723633347323,0.019,61061.0,61058.0,0.06535218]
[1723633347526,0.019,61061.0,61059.0,0.06535218]
[1723633348425,0.019,61061.0,61054.0,0.001]
[1723633348426,0.019,61061.0,61058.0,0.06535218]
[1723633349222,0.005,61061.0,61058.0,0.06535218]
[1723633349417,0.005,61061.0,61052.0,0.36104581]
[1723633349418,0.005,61061.0,61059.0,0.06535218]
[1723633349617,0.005,61061.0,61060.0,0.1113]
[1723633350332,0.01,61061.0,61060.0,0.1113]
[1723633350530,0.012,61061.0,61060.0,0.1113]
[1723633350733,0.007,61061.0,61060.0,0.1113]
[1723633351425,0.007,61061.0,61060.0,0.17648665]
[1723633351626,0.007,61061.0,61060.0,0.1113]
[1723633351820,0.007,61061.0,61060.0,0.17648665]
[1723633352028,0.002,61061.0,61060.0,0.17648665]
[1723633352523,0.002,61061.0,61060.0,0.1113]
[1723633352729,0.005,61061.0,61060.0,0.1113]
[1723633353329,0.2857,61061.0,61059.0,0.3608]
[1723633353633,0.2857,61061.0,61052.0,0.06543246]
[1723633353634,0.2827,61061.0,61052.0,0.06543246]
[1723633353823,0.2827,61061.0,61060.0,0.003]
[1723633354026,0.2827,61061.0,61060.0,0.006]
[1723633354222,0.2827,61061.0,61060.0,0.007]
[1723633355638,0.2827,61061.0,61060.0,0.004]
[1723633356035,0.2913146,61061.0,61060.0,0.007]
[1723633356331,0.2913146,61061.0,61052.0,0.00524581]
[1723633356532,0.2827,61053.0,61052.0,0.00524581]
[1723633357036,0.2827,61053.0,61052.0,0.00024581]
[1723633357037,0.7741,61053.0,61052.0,0.00024581]
[1723633358037,0.2827,61053.0,61052.0,0.00024581]
[1723633358239,0.7741,61053.0,61052.0,0.00024581]
[1723633358438,0.2827,61053.0,61052.0,0.00024581]
[1723633358635,0.2827,61053.0,61052.0,0.00324581]
[1723633360244,0.2837,61053.0,61052.0,0.00624581]
[1723633361435,0.29221767,61053.0,61052.0,0.00624581]
[1723633362337,0.001,61053.0,61052.0,0.00624581]
[1723633362746,0.001,61053.0,61052.0,0.07143246]
[1723633363841,0.001,61053.0,61052.0,0.00624581]
[1723633364036,0.001,61053.0,61052.0,0.07143246]
[1723633364237,0.001,61053.0,61052.0,0.00624581]
[1723633371947,0.001,61053.0,61052.0,0.49764581]
[1723633372851,0.001,61053.0,61052.0,0.9831818]
[1723633373554,0.1111,61064.0,61052.0,1.13499257]
[1723633373749,0.1111,61064.0,61062.0,0.06533321]
[1723633373953,0.06532327,61073.0,61063.0,0.3608]
[1723633374159,0.3608,61074.0,61064.0,0.20637637]
[1723633374345,0.3608,61074.0,61064.0,0.12470986]
[1723633374545,0.1135,61077.0,61064.0,0.22270967]
[1723633374847,0.1135,61077.0,61064.0,0.12470986]
[1723633375351,0.6833,61086.0,61064.0,1.16776287]
[1723633375352,0.0558,61084.0,61064.0,1.16776287]
[1723633375554,0.0558,61084.0,61077.0,0.06527731]
[1723633375759,0.36928921,61083.0,61077.0,0.06527731]
[1723633376556,0.36928921,61083.0,61076.0,0.06527731]
[1723633377053,0.00848921,61083.0,61078.0,0.3608]
[1723633377255,0.00024561,61086.0,61079.0,0.06527731]
[1723633377557,0.00024561,61086.0,61085.0,0.3608]
[1723633379054,0.01424561,61086.0,61085.0,0.3618]
[1723633379248,0.01424561,61086.0,61085.0,0.001]
[1723633379452,0.01424561,61086.0,61085.0,0.49212]
[1723633379858,0.04076801,61086.0,61085.0,0.89212]
[1723633380368,0.04076801,61086.0,61085.0,0.90016368]
[1723633380954,0.04076573,61086.0,61085.0,0.90016368]
[1723633381661,0.02624561,61086.0,61085.0,0.89312]
[1723633381852,0.02624561,61086.0,61085.0,0.002]
[1723633382056,0.02624561,61086.0,61085.0,0.012]
[1723633382057,0.01424561,61086.0,61085.0,0.012]
[1723633382247,0.04076649,61086.0,61085.0,0.012]
[1723633382455,0.04076649,61086.0,61085.0,0.019]
[1723633382456,0.0988409,61086.0,61085.0,0.019]
[1723633382649,0.02776761,61086.0,61085.0,0.019]
[1723633382956,0.02776761,61086.0,61085.0,0.00429991]
[1723633382957,0.09973678,61086.0,61085.0,0.00429991]
[1723633383157,0.42116727,61086.0,61085.0,0.00429991]
[1723633383360,0.53529189,61086.0,61085.0,0.00429991]
[1723633383564,0.59166087,61086.0,61085.0,0.00386992]
[1723633383770,0.6004781,61086.0,61085.0,0.00386992]
[1723633383962,1.45153225,61086.0,61067.0,0.3608]
[1723633384153,0.3608,61075.0,61058.0,0.6888]
[1723633384354,0.41893143,61075.0,61058.0,0.6888]
[1723633384661,0.56590332,61075.0,61058.0,0.6888]
[1723633385854,0.56590332,61075.0,61074.0,0.00224561]
[1723633386063,0.56590955,61075.0,61074.0,0.00224561]
[1723633386257,1.51623882,61075.0,61074.0,0.00224561]
[1723633386467,1.51623882,61075.0,61053.0,0.3608]
[1723633386468,1.51623882,61075.0,61051.0,0.0548]
[1723633386656,0.0974205,61053.0,61051.0,0.4156]
[1723633386853,0.08118544,61052.0,61051.0,0.4156]
[1723633387065,0.3608,61057.0,61051.0,0.4156]
[1723633388265,0.3608,61057.0,61051.0,0.3608]
[1723633388660,0.3608,61057.0,61051.0,0.3618]
[1723633390261,0.001,61057.0,61051.0,0.3618]
[1723633390458,0.002,61057.0,61051.0,0.3648]
[1723633391262,0.001,61057.0,61051.0,0.3648]
[1723633391461,0.002,61057.0,61051.0,0.3648]
[1723633392967,0.001,61057.0,61051.0,0.3648]
[1723633393367,0.2827,61053.0,61051.0,0.004]
[1723633393874,0.0548,61052.0,61051.0,0.004]
[1723633395966,0.001,61053.0,61051.0,0.004]
[1723633396163,0.001,61053.0,61048.0,0.00024561]
[1723633396371,0.001,61053.0,61051.0,0.004]
[1723633396771,0.00874762,61057.0,61051.0,0.004]
[1723633396963,0.0528,61058.0,61051.0,0.004]
[1723633396964,0.004,61052.0,61051.0,0.004]
[1723633397469,0.004,61052.0,61048.0,0.00024561]
[1723633397677,0.008,61052.0,61048.0,0.00024561]
[1723633398969,0.008,61052.0,61051.0,0.002]
[1723633400560,0.004,61052.0,61048.0,0.00024561]
[1723633400762,0.3648,61052.0,61048.0,0.00024561]
[1723633401166,0.3618,61052.0,61048.0,0.00024561]
[1723633401675,0.3638,61052.0,61048.0,0.00024561]
[1723633402070,0.3628,61052.0,61048.0,0.00024561]
[1723633402275,0.3618,61052.0,61048.0,0.00024561]
[1723633405273,0.001,61052.0,61048.0,0.00024561]
[1723633405972,0.001,61052.0,61049.0,0.3608]
[1723633406171,0.001,61052.0,61048.0,0.00024561]
[1723633406471,0.001,61052.0,61048.0,0.36104561]
[1723633406772,0.001,61052.0,61049.0,0.04878999]
[1723633407071,0.001,61052.0,61050.0,0.04878999]
[1723633407261,0.001,61052.0,61049.0,0.0555]
[1723633407466,0.001,61052.0,61050.0,0.0545]
[1723633407883,0.0517,61065.0,61051.0,1.18368985]
[1723633408168,0.00886586,61066.0,61059.0,0.3608]
[1723633408576,0.0535,61070.0,61059.0,0.40957902]
[1723633408874,0.06217444,61070.0,61059.0,1.3171587]
[1723633409072,0.06217444,61070.0,61065.0,0.3608]
[1723633409267,0.06217444,61070.0,61065.0,0.40958989]
[1723633409462,0.06217444,61070.0,61065.0,0.3608]
[1723633410376,0.06217444,61070.0,61065.0,0.40958989]
[1723633410577,0.06217444,61070.0,61065.0,0.3608]
[1723633411477,0.06217444,61070.0,61065.0,0.40958989]
[1723633411678,0.06217444,61070.0,61068.0,0.04878989]
[1723633411679,0.00867444,61070.0,61068.0,0.04878989]
[1723633411975,0.3608,61071.0,61065.0,0.3608]
[1723633411976,0.3608,61071.0,61069.0,0.04878989]
[1723633412176,0.3608,61071.0,61065.0,0.4258387]
[1723633412177,0.3608,61071.0,61070.0,0.04887207]
[1723633412372,0.3608,61071.0,61070.0,0.0650387]
[1723633412569,0.001,61070.0,61066.0,0.13289664]
[1723633412769,0.001,61070.0,61067.0,0.08159664]
[1723633413579,0.001,61070.0,61065.0,0.3608]
[1723633413580,0.001,61070.0,61066.0,0.08159664]
[1723633414974,0.00893859,61072.0,61066.0,0.08159664]
[1723633415180,0.004,61071.0,61066.0,0.08159664]
[1723633415377,0.002,61070.0,61066.0,0.08159664]
[1723633415574,0.002,61070.0,61065.0,0.44239664]
[1723633415878,0.004,61071.0,61065.0,0.44239664]
[1723633416076,0.00024561,61074.0,61066.0,0.08159664]
[1723633416384,0.00024561,61074.0,61071.0,0.06523025]
[1723633416567,0.00024561,61074.0,61070.0,0.06523025]
[1723633417184,0.06519391,61074.0,61065.0,0.3608]
[1723633417476,0.00024561,61074.0,61065.0,0.3608]
[1723633418177,0.3608,61073.0,61065.0,0.3608]
[1723633419076,0.001,61070.0,61065.0,0.3608]
[1723633419680,0.3618,61073.0,61065.0,0.3608]
[1723633420185,0.3618,61073.0,61065.0,0.3638]
[1723633422070,0.3608,61073.0,61065.0,0.3638]
[1723633422476,0.001,61070.0,61065.0,0.3638]
[1723633423080,0.3618,61073.0,61065.0,0.3638]
[1723633423285,0.3618,61073.0,61065.0,0.3608]
[1723633423584,0.3618,61073.0,61065.0,0.3628]
[1723633424385,0.3618,61073.0,61065.0,0.3618]
[1723633425178,0.3618,61073.0,61069.0,0.04891445]
[1723633425582,0.3608,61073.0,61069.0,0.04891445]
[1723633427781,0.3628,61073.0,61069.0,0.04891445]
[1723633428382,0.3628,61073.0,61070.0,0.04891445]
[1723633428577,0.3628,61073.0,61067.0,0.06523025]
[1723633428578,0.3628,61073.0,61071.0,0.04891445]
[1723633429886,0.3628,61073.0,61072.0,0.04891445]
[1723633430281,0.3628,61073.0,61069.0,0.11583025]
[1723633430480,0.3628,61073.0,61070.0,0.06523025]
[1723633430691,0.3628,61073.0,61072.0,0.06523025]
[1723633431085,0.3628,61073.0,61072.0,0.55643025]
[1723633431284,0.3628,61073.0,61070.0,0.0552]
[1723633431482,0.3648,61073.0,61070.0,0.0552]
[1723633431994,0.004,61073.0,61070.0,0.416]
[1723633432297,0.004,61073.0,61071.0,0.08159664]
[1723633433285,0.004,61073.0,61072.0,0.08159664]
[1723633433685,0.00024561,61074.0,61072.0,0.08159664]
[1723633434094,0.00024561,61074.0,61073.0,0.12468907]
[1723633434393,0.00024561,61074.0,61073.0,0.75588907]
[1723633434585,0.00024561,61074.0,61073.0,1.25380504]
[1723633436092,0.00124561,61074.0,61073.0,1.25380504]
[1723633436290,0.00124561,61074.0,61073.0,1.15588907]
[1723633436494,0.00861384,61079.0,61073.0,1.51668907]
[1723633436796,0.3608,61090.0,61078.0,0.3608]
[1723633436992,0.3608,61090.0,61088.0,0.06531098]
[1723633437189,0.0553,61096.0,61087.0,0.08163873]
[1723633437384,0.0553,61096.0,61094.0,0.06529541]
[1723633437594,0.0553,61096.0,61093.0,0.08163873]
[1723633437595,0.06406832,61096.0,61093.0,0.08163873]
[1723633437994,0.06406832,61096.0,61094.0,0.20628781]
[1723633438186,0.06406832,61096.0,61095.0,0.06525991]
[1723633438391,0.06406832,61096.0,61093.0,0.06525991]
[1723633438588,0.06406832,61096.0,61092.0,0.3608]
[1723633438589,0.06406832,61096.0,61094.0,0.06525991]
[1723633438897,0.06406832,61096.0,61093.0,0.08163873]
[1723633439088,0.06406832,61096.0,61092.0,0.44243873]
[1723633439285,0.07006832,61096.0,61095.0,0.06519063]
[1723633439491,0.07006832,61096.0,61093.0,0.06519063]
[1723633439686,0.2827,61094.0,61092.0,0.42599063]
[1723633439986,0.2827,61094.0,61093.0,0.04890936]
[1723633440193,0.3808831,61094.0,61085.0,0.00024561]
[1723633440387,0.3608,61086.0,61066.0,0.00424]
[1723633440694,0.11417565,61075.0,61062.0,0.3608]
[1723633441004,0.11417565,61069.0,61062.0,0.3608]
[1723633441206,0.11417565,61067.0,61062.0,0.3608]
[1723633441390,0.15019139,61068.0,61062.0,0.3608]
[1723633441391,0.17229868,61066.0,61062.0,0.3608]
[1723633441590,0.05812303,61065.0,61062.0,0.3608]
[1723633441791,0.05812303,61064.0,61062.0,0.3608]
[1723633441987,0.05812303,61063.0,61062.0,0.3608]
[1723633442191,0.02652339,61063.0,61062.0,0.3608]
[1723633442687,0.02652339,61067.0,61062.0,0.3608]
[1723633442901,0.052,61068.0,61062.0,0.3608]
[1723633442902,0.05813315,61066.0,61062.0,0.3608]
[1723633443092,0.02652339,61065.0,61062.0,0.3608]
[1723633443298,0.02652339,61064.0,61063.0,0.0554]
[1723633443493,0.02652339,61070.0,61063.0,0.2154]
[1723633443697,0.17233153,61069.0,61068.0,0.2827]
[1723633443901,0.05813268,61069.0,61068.0,0.2827]
[1723633444103,0.05813268,61070.0,61068.0,1.53474]
[1723633444303,0.00024561,61071.0,61068.0,1.53474]
[1723633444304,0.02652339,61069.0,61068.0,1.1835]
[1723633444600,0.02652339,61070.0,61068.0,1.67474]
[1723633444797,0.02652339,61070.0,61068.0,0.3608]
[1723633444798,0.05812862,61070.0,61068.0,0.3608]
[1723633444996,0.05812873,61069.0,61068.0,0.3608]
[1723633445207,0.02652339,61069.0,61068.0,0.3608]
[1723633445497,0.02652889,61069.0,61068.0,0.3608]
[1723633446298,0.02652889,61069.0,61068.0,1.13474]
[1723633446497,0.02752889,61069.0,61068.0,1.68474]
[1723633446798,0.02752889,61069.0,61068.0,1.68674]
[1723633446994,0.001,61069.0,61068.0,1.68674]
[1723633447197,0.3608,61092.0,61068.0,1.47191946]
[1723633447405,0.3608,61092.0,61088.0,0.04892247]
[1723633447595,0.11706747,61090.0,61088.0,0.04892247]
[1723633448799,0.49108,61089.0,61085.0,0.04767686]
[1723633449000,0.6435,61086.0,61083.0,0.00024561]
[1723633449403,0.3608,61084.0,61073.0,0.06522996]
[1723633449606,0.3608,61084.0,61071.0,0.06522996]
[1723633449607,0.3608,61074.0,61071.0,0.06522996]
[1723633449808,0.1047,61073.0,61070.0,0.06522996]
[1723633450009,0.1047,61073.0,61068.0,0.005]
[1723633450206,0.3618,61069.0,61068.0,0.005]
[1723633450702,0.3608,61069.0,61068.0,0.06522996]
[1723633451105,0.1047,61073.0,61065.0,0.08153746]
[1723633451407,0.1047,61073.0,61072.0,0.06525293]
[1723633451712,0.1047,61073.0,61068.0,0.44233746]
[1723633451713,0.3608,61074.0,61068.0,0.44233746]
[1723633452009,0.3608,61074.0,61072.0,0.0652486]
[1723633452407,0.3608,61074.0,61071.0,0.0652486]
[1723633452619,0.2827,61073.0,61068.0,0.0652486]
[1723633452809,0.3608,61069.0,61068.0,0.0652486]
[1723633453112,0.3608,61069.0,61066.0,0.0652486]
[1723633453309,0.3608,61069.0,61065.0,0.0652486]
[1723633454307,0.002,61073.0,61067.0,0.0652486]
[1723633454499,0.3608,61069.0,61066.0,0.0652486]
[1723633454705,0.3648,61069.0,61066.0,0.0652486]
[1723633455414,0.3648,61069.0,61065.0,0.0652486]
[1723633456215,0.3608,61069.0,61065.0,0.0652486]
[1723633456811,0.3608,61069.0,61062.0,0.00024561]
[1723633456812,0.2827,61067.0,61064.0,0.0652486]
[1723633457017,0.2827,61067.0,61062.0,0.00024561]
[1723633457018,0.3608,61065.0,61062.0,0.00024561]
[1723633457514,0.85208,61065.0,61062.0,0.00024561]
[1723633457812,0.3608,61065.0,61062.0,0.00024561]
[1723633458013,0.85208,61065.0,61062.0,0.00024561]
[1723633458630,0.3608,61065.0,61062.0,0.00024561]
[1723633459411,0.36973857,61065.0,61062.0,0.00024561]
[1723633459611,0.42083857,61065.0,61062.0,0.00024561]
[1723633460208,0.43083857,61065.0,61062.0,0.00024561]
[1723633461013,0.44383857,61065.0,61062.0,0.00124561]
[1723633461217,0.45283857,61065.0,61062.0,0.00224561]
[1723633461522,0.40173857,61065.0,61062.0,0.00224561]
[1723633461911,0.39173857,61065.0,61062.0,0.00224561]
[1723633462519,0.39773857,61065.0,61062.0,0.00224561]
[1723633462917,0.39173857,61065.0,61062.0,0.00224561]
[1723633463118,0.40173857,61065.0,61062.0,0.00224561]
[1723633463313,0.89301857,61065.0,61062.0,0.00224561]
[1723633463711,0.40173857,61065.0,61062.0,0.00224561]
[1723633463920,0.39173857,61065.0,61062.0,0.00224561]
[1723633464122,0.40173857,61065.0,61062.0,0.00224561]
[1723633464614,0.37973857,61065.0,61062.0,0.00024561]
[1723633464815,0.87101857,61065.0,61062.0,0.00024561]
[1723633465016,0.88401857,61065.0,61062.0,0.00124561]
[1723633466013,0.39273857,61065.0,61062.0,0.00124561]
[1723633466415,0.38273857,61065.0,61062.0,0.00124561]
[1723633466616,0.39073857,61065.0,61062.0,0.00124561]
[1723633467525,0.39273857,61065.0,61062.0,0.00124561]
[1723633468012,0.37973857,61065.0,61062.0,0.00024561]
[1723633468621,0.39273857,61065.0,61062.0,0.00124561]
[1723633469923,0.03193857,61065.0,61062.0,0.00124561]
[1723633471920,0.023,61065.0,61062.0,0.00124561]
[1723633472327,0.023,61065.0,61062.0,0.06649421]
[1723633472713,0.023,61065.0,61062.0,0.00124561]
[1723633473124,0.3608,61064.0,61062.0,0.00124561]
[1723633474618,0.3708,61064.0,61062.0,0.00124561]
[1723633474826,0.3838,61064.0,61062.0,0.00124561]
[1723633475630,0.3738,61064.0,61062.0,0.00024561]
[1723633476427,0.3838,61064.0,61062.0,0.00124561]
[1723633476824,0.3748,61064.0,61062.0,0.00124561]
[1723633477322,0.014,61064.0,61062.0,0.00124561]
[1723633477625,0.06515111,61063.0,61062.0,0.00124561]
[1723633477933,0.06514889,61063.0,61062.0,0.00124561]
[1723633478232,0.014,61064.0,61062.0,0.00124561]
[1723633479930,0.013,61063.0,61062.0,0.00124561]
[1723633480129,0.013,61063.0,61062.0,0.00224561]
[1723633482235,0.01,61064.0,61062.0,0.00024561]
[1723633482735,0.07514921,61064.0,61062.0,0.00024561]
[1723633483039,0.007,61063.0,61062.0,0.00024561]
[1723633483739,0.007,61063.0,61062.0,0.00124561]
[1723633484429,0.007,61063.0,61062.0,0.12595509]
[1723633485742,0.007,61063.0,61062.0,0.12495509]
[1723633485933,0.3608,61069.0,61062.0,0.12495509]
[1723633486133,0.3608,61069.0,61066.0,0.08170874]
[1723633486940,0.3608,61069.0,61067.0,0.2064157]
[1723633487141,0.3608,61069.0,61067.0,0.08170874]
[1723633487337,0.3608,61069.0,61066.0,0.08170874]
[1723633488741,0.3608,61069.0,61067.0,0.08170874]
[1723633488935,0.3608,61069.0,61066.0,0.08170874]
[1723633489136,0.3608,61069.0,61065.0,0.08170874]
[1723633489546,0.3628,61069.0,61064.0,0.44250874]
[1723633489851,0.3638,61069.0,61064.0,0.44250874]
[1723633490333,0.3618,61069.0,61064.0,0.44250874]
[1723633490539,0.3678,61069.0,61067.0,0.001]
[1723633490734,0.3668,61069.0,61067.0,0.001]
[1723633491142,0.3638,61069.0,61067.0,0.06537097]
[1723633491340,0.0516,61068.0,61067.0,0.06537097]
[1723633491535,0.0516,61068.0,61066.0,0.06537097]
[1723633492148,0.3658,61069.0,61064.0,0.08170874]
[1723633493241,0.3638,61069.0,61064.0,0.08170874]
[1723633493546,0.3648,61069.0,61062.0,0.36104561]
[1723633494341,0.3638,61069.0,61062.0,0.36104561]
[1723633494748,0.003,61069.0,61062.0,0.36104561]
[1723633495938,0.00024561,61075.0,61067.0,0.3608]
[1723633496141,0.00024561,61075.0,61068.0,0.1055]
[1723633496648,0.006,61069.0,61068.0,0.1055]
[1723633498545,0.00024561,61075.0,61068.0,0.3819578]
[1723633498748,0.00024561,61075.0,61072.0,0.3608]
[1723633498943,0.00024561,61075.0,61073.0,0.12468949]
[1723633499144,0.00024561,61075.0,61074.0,0.12468949]
[1723633499650,0.00024561,61075.0,61074.0,0.08164699]
[1723633499848,0.08181364,61075.0,61072.0,0.3608]
[1723633500745,0.08156803,61074.0,61072.0,0.3608]
[1723633501251,0.1064,61073.0,61072.0,0.3608]
[1723633501446,0.13292996,61073.0,61072.0,0.3608]
[1723633502149,0.13292996,61073.0,61066.0,0.3608]
[1723633502451,0.06523468,61067.0,61066.0,0.3608]
[1723633502650,0.1064,61073.0,61066.0,0.3608]
[1723633502651,0.06523468,61068.0,61066.0,0.3608]
[1723633502839,0.08154335,61072.0,61066.0,0.3608]
[1723633502840,0.06523468,61070.0,61066.0,0.3608]
[1723633503046,0.06523468,61070.0,61067.0,0.3608]
[1723633504251,0.06523468,61071.0,61067.0,0.3608]
[1723633504451,0.07323468,61073.0,61067.0,0.3608]
[1723633504643,0.07323468,61073.0,61072.0,0.3608]
[1723633505247,0.06823468,61073.0,61072.0,0.3608]
[1723633505449,0.06523468,61073.0,61072.0,0.3608]
[1723633505846,0.06524241,61073.0,61072.0,0.3608]
[1723633506047,0.005,61073.0,61072.0,0.3608]
[1723633506546,0.007,61073.0,61072.0,0.3608]
[1723633506750,0.007,61073.0,61066.0,0.3608]
[1723633506952,0.06524681,61068.0,61066.0,0.3608]
[1723633507347,0.08154335,61070.0,61066.0,0.3608]
[1723633507742,0.08154335,61069.0,61066.0,0.3608]
[1723633507943,0.1083,61071.0,61066.0,0.3608]
[1723633508155,0.2827,61070.0,61066.0,0.08168292]
[1723633508458,0.2827,61070.0,61068.0,0.06535126]
[1723633508651,0.2827,61070.0,61067.0,0.06535126]
[1723633508846,0.2827,61070.0,61063.0,0.40968292]
[1723633508847,0.2827,61070.0,61066.0,0.06535126]
[1723633509253,0.2827,61070.0,61067.0,0.06535126]
[1723633509759,0.2827,61070.0,61066.0,0.06535126]
[1723633510453,0.2927,61070.0,61068.0,0.001]
[1723633510760,0.3017,61070.0,61068.0,0.001]
[1723633510954,0.79994,61070.0,61068.0,0.001]
[1723633512454,0.3087,61070.0,61068.0,0.001]
[1723633512661,0.2897,61070.0,61066.0,0.06535126]
[1723633512863,0.2897,61070.0,61065.0,0.06535126]
[1723633513160,0.3608,61066.0,61064.0,0.06535126]
[1723633513854,0.3608,61066.0,61063.0,0.06535126]
[1723633515561,0.3608,61066.0,61064.0,0.06535126]
[1723633516761,0.3648,61066.0,61064.0,0.06535126]
[1723633516963,0.3648,61066.0,61063.0,0.06535126]
[1723633517555,0.3668,61066.0,61063.0,0.06535126]
[1723633517760,0.3668,61066.0,61062.0,0.08192853]
[1723633517761,0.006,61066.0,61062.0,0.08192853]
[1723633518155,0.013,61066.0,61064.0,0.001]
[1723633518565,0.02,61066.0,61064.0,0.001]
[1723633518764,0.02,61066.0,61064.0,0.08268292]
[1723633519663,0.02,61066.0,61064.0,0.001]
[1723633521064,0.014,61066.0,61065.0,0.0653063]
[1723633521270,0.02,61066.0,61064.0,0.001]
[1723633521657,0.02,61066.0,61062.0,0.08192853]
[1723633521658,0.006,61066.0,61065.0,0.06530931]
[1723633521858,0.006,61066.0,61062.0,0.00024561]
[1723633522061,0.054,61068.0,61062.0,0.00024561]
[1723633522464,0.3608,61066.0,61062.0,0.00024561]
[1723633522663,0.3618,61066.0,61062.0,0.00024561]
[1723633523062,0.3698,61066.0,61062.0,0.00024561]
[1723633523570,0.3698,61066.0,61064.0,0.001]
[1723633523571,0.3778,61066.0,61064.0,0.001]
[1723633525067,0.3698,61066.0,61062.0,0.00024561]
[1723633525271,0.3698,61066.0,61062.0,0.00124561]
[1723633525870,0.3698,61066.0,61062.0,0.00024561]
[1723633526674,0.3828,61066.0,61064.0,0.001]
[1723633528178,0.3848,61066.0,61064.0,0.001]
[1723633528771,0.3958,61066.0,61064.0,0.001]
[1723633528970,0.88708,61066.0,61064.0,0.001]
[1723633529681,0.3958,61066.0,61064.0,0.001]
[1723633530477,0.88708,61066.0,61064.0,0.001]
[1723633530672,0.88708,61066.0,61062.0,0.00124561]
[1723633530870,0.2827,61063.0,61062.0,0.00124561]
[1723633531071,0.3608,61064.0,61062.0,0.00124561]
[1723633532274,0.3608,61064.0,61062.0,0.00024561]
[1723633533371,0.36977278,61064.0,61062.0,0.00024561]
[1723633533778,0.38077278,61064.0,61062.0,0.00124561]
[1723633534879,0.39077278,61064.0,61062.0,0.00124561]
[1723633535783,0.37977278,61064.0,61062.0,0.06555492]
[1723633536376,0.37977278,61064.0,61062.0,0.00024561]
[1723633536575,0.37977278,61064.0,61063.0,0.4655]
[1723633536576,0.01897278,61064.0,61063.0,0.4655]
[1723633536883,0.01897278,61064.0,61063.0,0.1047]
[1723633537087,0.01,61064.0,61063.0,0.1047]
[1723633537282,0.022,61064.0,61063.0,0.18643921]
[1723633537674,0.022,61064.0,61063.0,0.1047]
[1723633538079,0.023,61064.0,61063.0,0.18646357]
[1723633538285,0.023,61064.0,61063.0,0.31117643]
[1723633539273,0.011,61064.0,61063.0,0.31117643]
[1723633539476,0.024,61064.0,61063.0,0.31217643]
[1723633539779,0.3608,61070.0,61063.0,0.31217643]
[1723633539780,0.3608,61070.0,61063.0,1.12169286]
[1723633539984,0.3608,61070.0,61069.0,0.0654121]
[1723633540181,0.3608,61070.0,61064.0,0.40741286]
[1723633540182,0.3608,61070.0,61067.0,0.08176512]
[1723633541078,0.3718,61070.0,61067.0,0.08176512]
[1723633541591,0.011,61070.0,61069.0,0.3608]
[1723633541779,0.011,61070.0,61069.0,0.48550343]
[1723633541978,0.011,61070.0,61069.0,0.97674343]
[1723633542287,0.00024561,61075.0,61069.0,0.97674343]
[1723633542587,0.00024561,61075.0,61072.0,0.08168424]
[1723633542773,0.00024561,61075.0,61071.0,0.08168424]
[1723633542979,0.00024561,61075.0,61072.0,0.06534866]
[1723633543173,0.00024561,61075.0,61070.0,0.06534866]
[1723633543378,0.00024561,61075.0,61064.0,0.3608]
[1723633543379,0.3608,61071.0,61068.0,0.06534866]
[1723633543678,0.00024561,61075.0,61065.0,0.08168424]
[1723633543679,0.00024561,61075.0,61069.0,0.06534866]
[1723633544783,0.008,61070.0,61069.0,0.001]
[1723633545483,0.00024561,61075.0,61069.0,0.001]
[1723633545484,0.00824561,61075.0,61069.0,0.001]
[1723633545684,0.00824561,61075.0,61073.0,0.06533272]
[1723633545886,0.00824561,61075.0,61069.0,0.06733272]
[1723633545887,0.0519,61074.0,61069.0,0.06733272]
[1723633546191,0.3608,61071.0,61069.0,0.002]
[1723633546782,0.6435,61071.0,61069.0,0.002]
[1723633547784,0.007,61070.0,61069.0,0.002]
[1723633548690,0.007,61070.0,61069.0,0.06733272]
[1723633548987,0.007,61070.0,61069.0,0.002]
[1723633549175,0.3678,61071.0,61069.0,0.002]
[1723633549383,0.007,61071.0,61069.0,0.002]
[1723633549574,0.007,61071.0,61069.0,0.08368424]
[1723633550282,0.007,61071.0,61069.0,0.08268424]
[1723633550482,0.007,61071.0,61069.0,0.08368424]
[1723633550878,0.3678,61071.0,61069.0,0.08368424]
[1723633551082,0.3678,61071.0,61065.0,0.36304]
[1723633551083,0.3678,61071.0,61070.0,0.06532969]
[1723633551381,0.37378339,61071.0,61069.0,0.06632969]